bitfinex-derivatives/quotes_ETHF0:USTF0_20250404
["timestamp","ask_amount","ask_price","bid_price","bid_amount"]
[1743756494926,1.09231,1831.3,1831.2,5.966]
[1743756495237,2.55701,1831.3,1831.2,5.966]
[1743756495737,1.09237,1831.2,1831.1,2.57483]
[1743756495938,6.45887,1831.2,1831.1,2.57483]
[1743756496531,5.3665,1831.2,1831.1,2.57483]
[1743756496736,6.45887,1831.2,1831.1,2.57483]
[1743756497224,6.45887,1831.2,1830.8,5.966]
[1743756497225,7.8665,1831.2,1830.8,5.966]
[1743756497433,1.09261,1830.8,1830.7,1.4796]
[1743756497622,3.2078,1830.8,1830.5,5.966]
[1743756497832,3.2078,1830.8,1830.4,0.0081965]
[1743756497833,3.2078,1830.6,1830.4,0.0081965]
[1743756498030,1.4804,1830.5,1830.4,2.5806265]
[1743756498230,3.2078,1830.6,1830.5,1.09279]
[1743756498432,1.4435,1830.7,1830.6,1.09273]
[1743756498623,0.7192,1830.7,1830.6,1.09273]
[1743756498824,2.57304,1830.8,1830.6,1.09273]
[1743756499029,2.57304,1830.8,1830.7,1.09267]
[1743756499434,2.57304,1830.8,1830.6,1.09268]
[1743756499632,2.57304,1830.8,1830.6,1.09269]
[1743756499837,1.09262,1830.8,1830.5,3.723]
[1743756500329,4.6513,1830.9,1830.6,1.78789]
[1743756500633,1.09273,1830.6,1830.5,3.723]
[1743756501039,1.09279,1830.5,1830.4,1.8009965]
[1743756501337,1.83409,1830.5,1830.4,1.8009965]
[1743756501527,1.83409,1830.5,1830.4,0.7081965]
[1743756501836,1.83409,1830.5,1830.4,1.8010465]
[1743756504133,1.09275,1830.6,1830.5,1.09279]
[1743756504332,1.09272,1830.7,1830.4,0.7081965]
[1743756504539,3.2078,1830.7,1830.5,0.706]
[1743756504738,1.09273,1830.6,1830.5,0.706]
[1743756504923,1.09273,1830.6,1830.5,41.506]
[1743756505128,1.09273,1830.6,1830.5,42.59879]
[1743756505432,1.83943,1830.8,1830.5,41.506]
[1743756505630,5.02468,1830.9,1830.8,1.09261]
[1743756506430,3.9321,1830.9,1830.6,3.724]
[1743756506634,1.09265,1830.8,1830.7,1.09264]
[1743756506834,1.09266,1830.8,1830.7,1.09265]
[1743756507433,3.2078,1830.9,1830.8,1.09261]
[1743756508929,3.2078,1830.9,1830.8,2.61511]
[1743756509335,4.30035,1830.9,1830.8,1.85921]
[1743756510034,4.30035,1830.9,1830.8,0.7666]
[1743756510337,1.09261,1830.8,1830.7,2.57932]
[1743756510534,1.81371,1830.8,1830.7,2.57932]
[1743756510740,2.54981,1830.8,1830.7,2.57932]
[1743756511234,2.54981,1830.8,1830.7,2.57937]
[1743756511441,4.03871,1830.8,1830.7,2.57937]
[1743756512441,4.03871,1830.8,1830.7,1.4867]
[1743756512636,1.09267,1830.7,1830.6,7.05873]
[1743756512837,1.09267,1830.7,1830.6,8.57743]
[1743756512838,5.74067,1830.7,1830.6,8.57743]
[1743756513041,5.74067,1830.7,1830.6,5.966]
[1743756513240,5.74067,1830.7,1830.6,1.09273]
[1743756513538,2.54981,1830.8,1830.7,1.09267]
[1743756514342,1.09267,1830.7,1830.6,2.61137]
[1743756514540,1.4572,1830.8,1830.7,1.09267]
[1743756514734,0.7211,1830.8,1830.7,2.61137]
[1743756514941,3.2078,1831.1,1830.8,2.73143]
[1743756515238,3.2078,1831.1,1831.0,1.09249]
[1743756516435,1.1004865,1831.4,1831.3,1.09231]
[1743756517032,1.1004865,1831.4,1831.3,41.89231]
[1743756518140,0.0081965,1831.4,1831.3,41.89231]
[1743756519533,3.2078,1831.9,1831.3,2.5]
[1743756519745,4.29977,1831.9,1831.8,1.09201]
[1743756519951,4.29977,1831.9,1831.8,41.89201]
[1743756520146,0.7592,1831.9,1831.8,41.89201]
[1743756520341,1.09194,1832.0,1831.8,41.89201]
[1743756520648,3.2078,1832.2,1832.1,1.09183]
[1743756521244,1.09172,1832.3,1832.2,1.09178]
[1743756521942,4.6533,1832.4,1832.2,2.58998]
[1743756522142,1.09172,1832.3,1832.2,1.4982]
[1743756522443,2.52992,1832.3,1832.2,1.4982]
[1743756523747,1.09178,1832.2,1832.1,5.966]
[1743756523947,5.73778,1832.2,1832.1,5.966]
[1743756525040,3.2078,1832.2,1832.0,6.31308]
[1743756525244,1.09183,1832.1,1832.0,6.31308]
[1743756526547,1.09183,1832.1,1832.0,6.31309]
[1743756526747,5.93695,1832.4,1832.0,6.31309]
[1743756526947,3.2078,1832.1,1832.0,6.31309]
[1743756527346,3.2078,1832.1,1832.0,6.31109]
[1743756527848,4.29963,1832.1,1832.0,5.2192]
[1743756528155,4.29963,1832.1,1832.0,6.31109]
[1743756528646,4.29963,1832.1,1832.0,5.2192]
[1743756529750,4.29963,1832.1,1832.0,6.31109]
[1743756530651,3.2078,1832.1,1832.0,6.31109]
[1743756530853,1.09181,1832.2,1832.1,1.09179]
[1743756531247,4.29961,1832.2,1832.1,1.09179]
[1743756531448,1.09183,1832.1,1832.0,12.27705]
[1743756532054,4.29962,1832.2,1832.1,1.09183]
[1743756533656,4.29962,1832.2,1832.1,2.51073]
[1743756534461,4.29962,1832.2,1832.1,1.4189]
[1743756535158,4.29962,1832.2,1832.1,2.51073]
[1743756535958,3.2078,1832.2,1832.1,2.51073]
[1743756536159,4.29958,1832.2,1832.1,1.4189]
[1743756536359,1.09183,1832.1,1832.0,10.77887]
[1743756536561,3.32603,1832.1,1832.0,10.77887]
[1743756536757,3.32603,1832.1,1832.0,4.81287]
[1743756536957,2.2342,1832.1,1831.9,8.1357]
[1743756537156,1.09189,1832.0,1831.9,9.22764]
[1743756537464,2.60259,1832.0,1831.9,7.4172]
[1743756537663,5.81039,1832.0,1831.9,5.966]
[1743756540462,4.29969,1832.0,1831.9,7.05795]
[1743756540658,4.29969,1832.0,1831.9,7.3704]
[1743756540857,5.83759,1832.0,1831.9,7.3704]
[1743756542261,1.09201,1831.8,1831.7,0.0081965]
[1743756542460,4.29981,1831.8,1831.7,0.0081965]
[1743756542660,6.79981,1831.8,1831.7,0.0081965]
[1743756542866,1.09219,1831.5,1831.4,1.46]
[1743756543156,4.29999,1831.5,1831.4,1.46]
[1743756543362,3.2078,1831.5,1831.4,2.55225]
[1743756543563,3.2078,1831.7,1831.5,1.09219]
[1743756543862,0.7162,1831.8,1831.7,1.09207]
[1743756544059,0.0081965,1831.8,1831.7,1.09207]
[1743756544471,0.0081965,1831.8,1831.7,2.55207]
[1743756544659,0.0081965,1831.8,1831.7,43.35207]
[1743756545062,1.1002065,1831.8,1831.7,42.26]
[1743756545366,2.6010065,1831.8,1831.7,42.26]
[1743756545558,1.09207,1831.7,1831.6,7.05813]
[1743756545758,3.2078,1831.7,1831.6,5.966]
[1743756545963,2.6010565,1831.8,1831.7,1.09207]
[1743756546163,1.09207,1831.7,1831.6,47.8581]
[1743756546567,4.29987,1831.7,1831.6,47.8581]
[1743756546770,4.29987,1831.7,1831.6,49.2494]
[1743756547067,3.2078,1831.7,1831.6,49.2494]
[1743756547768,0.0081965,1831.8,1831.7,1.09207]
[1743756548064,0.0081965,1831.8,1831.7,3.25177]
[1743756548663,1.1002065,1831.8,1831.7,3.25177]
[1743756548959,1.1002065,1831.8,1831.7,2.48337]
[1743756549458,1.1002065,1831.8,1831.7,1.3913]
[1743756549658,2.5555065,1831.8,1831.7,1.3913]
[1743756549972,2.5555065,1831.8,1831.7,2.48337]
[1743756550467,2.5555065,1831.8,1831.7,1.3913]
[1743756550660,2.5555065,1831.8,1831.7,2.48337]
[1743756551171,2.5555065,1831.8,1831.7,1.3913]
[1743756551869,2.5555065,1831.8,1831.7,2.48337]
[1743756552062,1.09212,1831.7,1831.6,1.09212]
[1743756552263,5.03552,1831.7,1831.6,1.09212]
[1743756552466,5.03549,1831.7,1831.6,41.89213]
[1743756552768,5.03549,1831.7,1831.6,40.8]
[1743756552970,5.03549,1831.7,1831.6,41.89213]
[1743756553170,5.03549,1831.7,1831.6,43.40303]
[1743756554368,5.03549,1831.7,1831.6,42.3109]
[1743756554669,5.74899,1831.7,1831.6,42.3109]
[1743756555067,1.09219,1831.5,1831.4,1.1004165]
[1743756555268,4.29999,1831.5,1831.4,2.6194165]
[1743756555668,4.29999,1831.5,1831.4,43.4194165]
[1743756557067,3.2078,1831.5,1831.4,43.4194165]
[1743756557372,5.74899,1831.7,1831.6,1.09213]
[1743756558967,4.6569,1831.7,1831.6,1.09213]
[1743756559169,1.1002565,1831.8,1831.7,1.09207]
[1743756559366,1.09212,1831.7,1831.6,1.09209]
[1743756559567,1.09212,1831.7,1831.6,2.52619]
[1743756560275,4.3080365,1831.8,1831.7,1.09207]
[1743756560474,4.3080365,1831.8,1831.7,2.52617]
[1743756561175,5.7233365,1831.8,1831.7,1.4341]
[1743756561376,5.7233365,1831.8,1831.7,2.52617]
[1743756561675,5.7233365,1831.8,1831.7,1.4341]
[1743756562379,5.7233365,1831.8,1831.7,2.52617]
[1743756563076,5.7233365,1831.8,1831.7,1.4341]
[1743756563376,5.7233365,1831.8,1831.7,2.52617]
[1743756564878,0.0081965,1831.8,1831.7,2.52617]
[1743756565088,3.2078,1832.0,1831.9,1.09195]
[1743756565482,4.29969,1832.0,1831.9,1.4183]
[1743756565793,4.29969,1832.0,1831.9,2.51025]
[1743756565992,4.29969,1832.0,1831.9,1.4183]
[1743756566492,5.01379,1832.0,1831.9,1.4183]
[1743756567382,1.09201,1831.8,1831.7,10.77602]
[1743756567588,4.29981,1831.8,1831.7,12.22662]
[1743756567790,4.29981,1831.8,1831.7,11.1346]
[1743756567990,4.29981,1831.8,1831.7,12.22667]
[1743756568192,4.29981,1831.8,1831.7,8.50867]
[1743756568995,4.29981,1831.8,1831.7,2.54267]
[1743756570096,1.09207,1831.7,1831.6,7.05807]
[1743756570291,0.7215,1831.7,1831.6,8.55227]
[1743756570491,5.78496,1831.8,1831.6,8.55227]
[1743756570492,3.2078,1831.8,1831.7,1.09207]
[1743756570690,3.2078,1831.8,1831.7,3.28207]
[1743756571091,4.29981,1831.8,1831.7,3.28207]
[1743756573398,3.2078,1831.8,1831.7,3.28207]
[1743756573889,4.29981,1831.8,1831.7,3.28207]
[1743756574197,4.29981,1831.8,1831.7,2.58627]
[1743756575201,4.29981,1831.8,1831.7,1.4942]
[1743756575500,4.29981,1831.8,1831.7,2.58627]
[1743756577196,4.29981,1831.8,1831.7,1.4942]
[1743756577602,1.09207,1831.7,1831.6,5.966]
[1743756577802,2.52537,1831.7,1831.6,5.966]
[1743756578900,1.09213,1831.6,1831.5,2.56419]
[1743756579101,6.45643,1831.6,1831.5,2.56419]
[1743756579303,5.04403,1831.6,1831.5,2.56419]
[1743756580400,5.04403,1831.6,1831.5,1.472]
[1743756580600,5.04403,1831.6,1831.5,2.56419]
[1743756581610,3.9519,1831.6,1831.5,2.56419]
[1743756581810,5.04403,1831.6,1831.5,2.56419]
[1743756582108,1.83623,1831.6,1831.5,2.56419]
[1743756582708,5.04403,1831.6,1831.5,2.56419]
[1743756582913,1.09213,1831.6,1831.5,2.56419]
[1743756583211,4.29993,1831.6,1831.5,2.56419]
[1743756583510,1.09213,1831.6,1831.5,2.56419]
[1743756583812,4.29993,1831.6,1831.5,2.56419]
[1743756584404,5.01263,1831.6,1831.5,2.56419]
[1743756584604,4.29993,1831.6,1831.5,2.56419]
[1743756584906,1.09213,1831.7,1831.6,1.09209]
[1743756585214,4.29986,1831.8,1831.7,1.09207]
[1743756586104,4.29986,1831.8,1831.7,1.79627]
[1743756586506,3.2078,1831.8,1831.4,47.2557565]
[1743756586809,1.09217,1831.6,1831.5,1.0921]
[1743756587809,1.79607,1831.6,1831.5,1.0921]
[1743756589518,1.79607,1831.6,1831.5,7.0581]
[1743756590117,5.00387,1831.6,1831.5,7.0581]
[1743756590514,4.29997,1831.6,1831.5,7.0581]
[1743756591312,3.31892,1831.7,1831.6,1.09213]
[1743756591512,1.83352,1831.7,1831.6,1.09213]
[1743756591815,1.09212,1831.7,1831.6,1.09213]
[1743756592016,1.09212,1831.7,1831.6,1.82713]
[1743756592414,1.82713,1831.8,1831.7,1.09207]
[1743756592909,5.03493,1831.8,1831.7,1.09207]
[1743756593110,1.09207,1831.7,1831.6,1.0921]
[1743756594619,2.53737,1831.7,1831.6,1.0921]
[1743756595718,1.09207,1831.7,1831.6,1.0921]
[1743756595914,3.9429,1831.8,1831.7,1.09207]
[1743756595915,5.03493,1831.8,1831.7,1.09207]
[1743756596314,5.3882,1831.8,1831.7,1.09207]
[1743756596521,3.2078,1831.8,1831.7,1.09207]
[1743756596718,1.81951,1831.9,1831.8,1.09196]
[1743756596919,1.09207,1831.8,1831.7,1.09203]
[1743756597119,5.74517,1831.8,1831.7,1.09203]
[1743756597619,1.09201,1831.8,1831.7,1.09203]
[1743756597917,3.2078,1831.8,1831.7,1.09203]
[1743756598119,4.29981,1831.8,1831.7,1.09203]
[1743756598921,1.09201,1831.8,1831.7,2.59723]
[1743756599122,4.29981,1831.8,1831.7,2.59723]
[1743756599618,5.79071,1831.8,1831.7,2.59723]
[1743756599822,5.79071,1831.8,1831.7,1.5052]
[1743756600020,1.09207,1831.7,1831.6,1.09209]
[1743756600221,1.09218,1831.6,1831.5,2.59734]
[1743756600421,5.74188,1831.6,1831.5,2.59734]
[1743756601323,5.74188,1831.6,1831.5,1.09214]
[1743756603021,1.09219,1831.5,1831.4,6.3307965]
[1743756603223,2.60179,1831.5,1831.4,6.3307965]
[1743756603427,1.09251,1831.0,1830.8,5.966]
[1743756603620,4.30031,1831.0,1830.9,1.4865]
[1743756603933,4.30031,1831.0,1830.9,2.57905]
[1743756604225,3.2078,1831.0,1830.9,2.57905]
[1743756604525,2.2753,1831.1,1831.0,1.09249]
[1743756604722,1.09249,1831.0,1830.9,2.57902]
[1743756604919,1.09255,1830.9,1830.8,46.7741965]
[1743756605119,4.30035,1830.9,1830.8,47.8668065]
[1743756605427,4.30035,1830.9,1830.8,46.7741965]
[1743756605629,4.30035,1830.9,1830.8,5.9741965]
[1743756606127,4.30035,1830.9,1830.8,0.0081965]
[1743756607922,3.2078,1830.9,1830.8,0.0081965]
[1743756608227,4.30035,1830.9,1830.8,1.1008065]
[1743756608427,4.30035,1830.9,1830.8,0.0081965]
[1743756612830,3.2078,1830.9,1830.8,1.1008065]
[1743756613035,3.2078,1830.9,1830.8,3.6008065]
[1743756613334,3.2078,1830.9,1830.8,1.1008065]
[1743756613534,3.2078,1830.9,1830.8,2.6148065]
[1743756613741,3.2078,1830.9,1830.8,43.4148065]
[1743756614037,4.30035,1830.9,1830.8,43.4148065]
[1743756614242,3.2078,1830.9,1830.8,43.4148065]
[1743756615934,4.30035,1830.9,1830.8,2.6148065]
[1743756616138,3.2078,1830.9,1830.8,2.6148065]
[1743756616341,4.30035,1830.9,1830.8,43.4148065]
[1743756616941,4.30035,1830.9,1830.8,40.8081965]
[1743756617141,5.70545,1830.9,1830.8,0.0081965]
[1743756617637,1.09273,1830.6,1830.5,5.966]
[1743756617942,1.09283,1830.5,1830.4,2.51028]
[1743756618343,1.09283,1830.5,1830.4,43.31028]
[1743756618538,1.09283,1830.5,1830.4,2.51028]
[1743756619335,3.2266865,1830.6,1830.5,1.09279]
[1743756619642,3.2266865,1830.6,1830.5,2.51069]
[1743756620033,0.0081965,1830.6,1830.5,2.51069]
[1743756621041,1.1009265,1830.6,1830.5,2.51069]
[1743756621735,1.1009265,1830.6,1830.5,1.4179]
[1743756622040,1.1009265,1830.6,1830.5,2.51069]
[1743756622240,1.1009265,1830.6,1830.5,1.4179]
[1743756622437,3.3001265,1830.6,1830.5,2.51069]
[1743756622834,3.3001265,1830.6,1830.5,1.4179]
[1743756623553,1.09279,1830.5,1830.4,1.0928]
[1743756623750,1.09279,1830.5,1830.4,1.4166]
[1743756623751,6.56609,1830.5,1830.4,1.4166]
[1743756623974,1.09285,1830.4,1830.3,0.0081965]
[1743756624259,2.58895,1830.4,1830.3,1.1011065]
[1743756624547,2.58895,1830.4,1830.3,1.4247965]
[1743756626146,5.07002,1830.5,1830.3,1.4247965]
[1743756626441,2.1659965,1830.6,1830.5,1.09279]
[1743756626649,1.8040265,1830.6,1830.5,1.09279]
[1743756627146,1.09279,1830.5,1830.4,0.7589]
[1743756627340,4.30059,1830.5,1830.4,0.7589]
[1743756627540,1.09285,1830.4,1830.3,1.1010565]
[1743756627746,1.09285,1830.4,1830.3,0.0081965]
[1743756627948,2.50465,1830.4,1830.3,0.0081965]
[1743756628550,1.09285,1830.4,1830.3,1.1011065]
[1743756629352,4.30061,1830.5,1830.4,1.09285]
[1743756629546,1.09285,1830.4,1830.3,0.0081965]
[1743756629749,1.09285,1830.4,1830.3,1.1010665]
[1743756633250,4.30063,1830.5,1830.4,1.09285]
[1743756634151,3.2078,1830.5,1830.4,1.09285]
[1743756634351,4.30059,1830.5,1830.4,1.09285]
[1743756634547,3.2078,1830.5,1830.4,1.09285]
[1743756635050,1.09279,1830.5,1830.4,1.09285]
[1743756635350,1.8040665,1830.6,1830.5,1.09279]
[1743756636547,1.09279,1830.5,1830.4,40.8]
[1743756636749,1.09285,1830.4,1830.3,3.7231965]
[1743756636953,1.09285,1830.4,1830.3,0.0081965]
[1743756637456,5.72814,1830.5,1830.4,1.09285]
[1743756638154,4.30064,1830.5,1830.4,1.09285]
[1743756638358,1.09284,1830.5,1830.4,1.09285]
[1743756638552,1.8040465,1830.6,1830.5,1.09279]
[1743756640447,0.7112965,1830.6,1830.5,1.09279]
[1743756640648,1.8040265,1830.6,1830.5,1.09279]
[1743756641143,0.7112965,1830.6,1830.5,7.05879]
[1743756641349,1.1009265,1830.6,1830.5,8.53519]
[1743756641549,1.1009265,1830.6,1830.5,6.6817]
[1743756641751,1.1009265,1830.6,1830.5,5.966]
[1743756641953,2.6128265,1830.6,1830.5,7.05879]
[1743756642859,2.6128265,1830.6,1830.5,5.966]
[1743756644460,5.1128265,1830.6,1830.5,5.966]
[1743756644752,1.09285,1830.4,1830.3,0.0081965]
[1743756644957,4.30065,1830.4,1830.3,0.0081965]
[1743756645359,5.79955,1830.4,1830.3,0.0081965]
[1743756648553,5.79955,1830.4,1830.3,1.4031965]
[1743756649863,5.79955,1830.4,1830.3,0.0081965]
[1743756655764,2.59175,1830.4,1830.3,0.0081965]
[1743756655959,5.79955,1830.4,1830.3,0.0081965]
[1743756657168,12.01355,1830.4,1830.3,6.5e-06]
[1743756657759,12.44888447,1830.4,1830.3,6.5e-06]
[1743756657962,1.09327,1829.7,1829.6,7.05928]
[1743756658265,1.09327,1829.7,1829.6,7.4753]
[1743756658563,1.09327,1829.7,1829.6,8.56863]
[1743756658967,1.09339,1829.5,1829.4,1.8463]
[1743756659265,1.09339,1829.5,1829.4,3.2532]
[1743756659465,1.09339,1829.5,1829.4,2.1598]
[1743756659667,1.09339,1829.5,1829.4,44.05325]
[1743756660162,1.09339,1829.5,1829.4,3.25325]
[1743756660566,1.09339,1829.5,1829.4,2.1598]
[1743756661467,1.09339,1829.5,1829.4,3.25325]
[1743756662160,1.09339,1829.5,1829.4,2.1598]
[1743756662364,4.30119,1829.5,1829.4,2.1598]
[1743756662564,1.84369,1829.5,1829.4,3.25325]
[1743756662762,1.84369,1829.5,1829.4,2.1598]
[1743756662965,1.84369,1829.5,1829.4,3.25325]
[1743756663168,1.84369,1829.5,1829.4,2.1598]
[1743756663669,1.84369,1829.5,1829.4,3.25325]
[1743756663859,5.05149,1829.5,1829.4,3.25325]
[1743756664266,1.4784965,1829.6,1829.5,1.09339]
[1743756664466,1.1015265,1829.6,1829.5,2.49889]
[1743756665770,1.1015265,1829.6,1829.5,43.29889]
[1743756665971,1.1015265,1829.6,1829.5,42.2055]
[1743756666273,2.6318265,1829.6,1829.5,42.2055]
[1743756666969,1.1015265,1829.6,1829.5,43.29889]
[1743756667666,1.1015265,1829.6,1829.5,44.05549]
[1743756667872,0.0081965,1829.6,1829.5,44.05549]
[1743756668168,1.1015265,1829.6,1829.5,44.05549]
[1743756669674,1.1015265,1829.6,1829.5,42.9621]
[1743756669870,1.1015265,1829.6,1829.5,1.4055]
[1743756670168,2.5979265,1829.6,1829.5,1.4055]
[1743756670370,1.09345,1829.4,1829.3,7.0677065]
[1743756670577,4.30123,1829.5,1829.4,1.09345]
[1743756671067,1.09345,1829.4,1829.3,47.8676565]
[1743756671774,1.09345,1829.4,1829.3,49.3289565]
[1743756672878,1.09345,1829.4,1829.3,48.2354965]
[1743756673069,1.09345,1829.4,1829.3,7.4354965]
[1743756673274,1.09345,1829.4,1829.3,1.4694965]
[1743756673475,1.81105,1829.4,1829.3,0.0081965]
[1743756673679,2.50395,1829.4,1829.3,0.0081965]
[1743756673872,3.96035,1829.4,1829.3,0.0081965]
[1743756674076,6.46035,1829.4,1829.3,0.0081965]
[1743756682284,1.09392,1828.7,1828.6,1.09388]
[1743756682586,1.09386,1828.8,1828.7,1.09382]
[1743756683185,4.30155,1828.9,1828.8,1.09381]
[1743756683989,4.30155,1828.9,1828.8,1.83751]
[1743756684999,1.09381,1828.8,1828.7,2.4912065]
[1743756685191,1.09381,1828.8,1828.7,3.2349065]
[1743756685489,1.09381,1828.8,1828.7,5.7349065]
[1743756685789,4.30158,1828.9,1828.8,1.09381]
[1743756686088,4.30158,1828.9,1828.8,2.62541]
[1743756686783,4.30158,1828.9,1828.8,1.5316]
[1743756688382,4.30158,1828.9,1828.8,2.62541]
[1743756688682,3.2078,1828.9,1828.8,2.62541]
[1743756688984,1.81823,1829.1,1829.0,1.09369]
[1743756689187,1.09371,1829.0,1828.9,3.2993]
[1743756689486,3.2078,1829.0,1828.9,3.2993]
[1743756689686,1.09369,1829.0,1828.9,44.0993]
[1743756689885,4.30149,1829.0,1828.9,44.0993]
[1743756690079,3.2078,1829.2,1829.1,1.09363]
[1743756690284,3.2078,1829.4,1829.3,1.09351]
[1743756690784,3.2078,1829.4,1829.3,3.59351]
[1743756691084,3.2078,1829.4,1829.3,2.48381]
[1743756694087,3.2078,1829.4,1829.3,1.09351]
[1743756694288,3.2078,1829.4,1829.3,1.83981]
[1743756694689,3.2078,1829.4,1829.3,3.35841]
[1743756695189,3.2078,1829.4,1829.3,9.32441]
[1743756695380,4.30125,1829.4,1829.3,8.57811]
[1743756695580,7.17685,1829.4,1829.3,8.57811]
[1743756695980,5.74645,1829.4,1829.3,8.57811]
[1743756697189,4.653,1829.4,1829.3,8.57811]
[1743756697390,3.2078,1829.4,1829.3,8.57811]
[1743756698184,3.2159965,1829.6,1829.5,1.09339]
[1743756698891,3.2159965,1829.6,1829.5,2.50939]
[1743756699095,3.2159965,1829.6,1829.5,3.22179]
[1743756699394,3.2159965,1829.6,1829.5,1.09339]
[1743756699593,5.3737965,1829.6,1829.5,1.09339]
[1743756699787,6.4671265,1829.6,1829.5,1.09339]
[1743756700593,5.3737965,1829.6,1829.5,1.09339]
[1743756701291,6.4671265,1829.6,1829.5,1.09339]
[1743756701590,6.4671265,1829.6,1829.5,2.58319]
[1743756703390,7.8737965,1829.6,1829.0,1.4898]
[1743756703688,1.09363,1829.1,1829.0,1.09369]
[1743756704095,5.71537,1829.2,1829.1,1.09363]
[1743756704288,3.2078,1829.4,1829.2,1.09351]
[1743756704593,1.09353,1829.3,1829.2,1.09351]
[1743756705087,1.09353,1829.3,1829.2,2.49641]
[1743756706897,1.5222,1829.3,1829.2,2.49641]
[1743756707091,5.71526,1829.4,1829.3,1.09351]
[1743756707292,5.71526,1829.4,1829.3,2.58311]
[1743756707689,4.6218,1829.4,1829.3,2.58311]
[1743756707893,5.71525,1829.4,1829.3,2.58311]
[1743756709597,5.71525,1829.4,1829.3,1.4896]
[1743756709804,5.71525,1829.4,1829.3,2.58311]
[1743756712099,5.71525,1829.4,1829.1,0.7014]
[1743756712299,3.2078,1829.2,1828.9,1.09372]
[1743756712498,4.30149,1829.0,1828.9,1.09372]
[1743756712702,3.2078,1829.0,1828.9,1.09372]
[1743756713200,4.30149,1829.0,1828.9,1.09372]
[1743756713402,3.2078,1829.0,1828.9,1.09372]
[1743756713601,0.734,1829.1,1829.0,1.09369]
[1743756713798,1.82763,1829.1,1829.0,1.09369]
[1743756713999,0.734,1829.1,1829.0,1.09369]
[1743756714197,1.82763,1829.1,1829.0,1.83079]
[1743756715904,1.09369,1829.0,1828.9,7.05969]
[1743756716096,5.06109,1829.0,1828.9,7.05969]
[1743756717606,5.06109,1829.0,1828.9,5.966]
[1743756717909,6.56429,1829.0,1828.9,5.966]
[1743756718705,0.734,1829.1,1829.0,1.09369]
[1743756719009,1.82763,1829.1,1829.0,1.09369]
[1743756719804,0.734,1829.1,1829.0,1.09369]
[1743756720306,5.00729,1829.2,1829.1,1.09363]
[1743756720504,4.30139,1829.2,1829.1,1.09363]
[1743756720810,3.2078,1829.2,1829.1,1.09363]
[1743756721010,4.30137,1829.2,1829.1,1.09363]
[1743756721202,4.30137,1829.2,1828.9,8.70032]
[1743756721203,1.09364,1829.1,1829.0,1.09363]
[1743756721402,1.09369,1829.0,1828.9,7.05973]
[1743756721603,4.30149,1829.1,1829.0,1.09367]
[1743756721902,3.2078,1829.1,1829.0,1.09367]
[1743756722219,3.2078,1829.1,1829.0,3.59367]
[1743756722523,3.2078,1829.3,1829.2,1.09351]
[1743756722712,2.49216,1829.4,1829.3,1.09351]
[1743756722713,1.78626,1829.4,1829.3,1.09351]
[1743756723009,4.30126,1829.4,1829.3,1.09351]
[1743756723213,3.2078,1829.4,1829.1,5.966]
[1743756723607,1.09357,1829.2,1829.1,7.05958]
[1743756723799,1.09357,1829.2,1829.1,47.85958]
[1743756724613,3.9543,1829.2,1829.1,7.05958]
[1743756724912,3.2078,1829.2,1829.1,7.05958]
[1743756725510,4.30137,1829.2,1829.1,7.05963]
[1743756726103,4.30137,1829.2,1829.1,5.966]
[1743756726303,4.30137,1829.2,1829.1,7.05963]
[1743756727314,4.30137,1829.2,1829.1,1.09363]
[1743756727701,4.30137,1829.2,1829.1,41.89363]
[1743756729114,4.30137,1829.2,1829.1,1.09363]
[1743756729319,4.30137,1829.2,1829.1,1.5305]
[1743756729812,3.2078,1829.2,1829.1,2.62413]
[1743756731211,6.43817,1829.4,1829.3,1.09351]
[1743756731411,5.04777,1829.4,1829.3,1.09351]
[1743756731914,1.09351,1829.3,1829.2,2.62405]
[1743756732724,1.09351,1829.3,1829.2,1.5305]
[1743756732921,2.51701,1829.3,1829.2,1.5305]
[1743756733718,2.51701,1829.3,1829.2,2.62407]
[1743756735620,1.4235,1829.3,1829.2,2.62407]
[1743756736014,5.04778,1829.4,1829.3,1.09351]
[1743756736215,5.04778,1829.4,1829.3,2.53151]
[1743756737315,3.9543,1829.4,1829.3,2.53151]
[1743756737619,3.2159965,1829.6,1829.5,1.09339]
[1743756738215,3.2159965,1829.6,1829.5,3.21849]
[1743756742126,3.2159965,1829.6,1829.5,9.18449]
[1743756743223,4.3093265,1829.6,1829.5,8.46449]
[1743756743518,4.3093265,1829.6,1829.5,7.05939]
[1743756743718,5.7551265,1829.6,1829.5,7.05939]
[1743756745426,2.5473265,1829.6,1829.5,7.05939]
[1743756745626,5.7551265,1829.6,1829.5,7.05939]
[1743756746017,4.6617965,1829.6,1829.5,7.05939]
[1743756746218,3.2159965,1829.6,1829.5,7.05939]
[1743756746421,3.2159965,1829.6,1829.5,7.76389]
[1743756747319,3.2159965,1829.6,1829.5,7.05939]
[1743756747518,4.3093265,1829.6,1829.5,7.05939]
[1743756747913,4.3093265,1829.6,1829.5,1.09339]
[1743756750125,3.2159965,1829.6,1829.5,1.09339]
[1743756750621,5.6961265,1829.6,1829.5,1.09339]
[1743756751114,5.6961265,1829.6,1829.4,1.5125]
[1743756751115,1.09339,1829.5,1829.4,2.60591]
[1743756751321,3.95819,1829.5,1829.4,2.60591]
[1743756751523,2.8648,1829.5,1829.4,2.60591]
[1743756751725,3.95819,1829.5,1829.4,2.60591]
[1743756753116,2.8648,1829.5,1829.4,2.60591]
[1743756753519,3.2159965,1829.6,1829.5,1.09339]
[1743756753814,3.2159965,1829.6,1829.5,2.59329]
[1743756754824,3.2159965,1829.6,1829.5,43.39329]
[1743756756129,3.2159965,1829.6,1829.5,2.59329]